Cogmind - Beta 13 X1 @@@ ROGUE MODE // 2023.10.09 @ 16:01:36 Player: maxwell Result: Destroyed by D-53 Grenadier with Mini Grenade Launcher Performance ------------- Evolutions (0) 0 Regions Visited (2) 400 Robots Destroyed (20) 100 Value Destroyed (432) 432 Prototype IDs (0) 0 Alien Tech Used (0) 0 Bonus (0) 0 TOTAL SCORE: 932 Bonus ------- None Cogmind --------- Core Integrity 0/250 Matter 299/300 Energy 99/100 System Corruption 0% Temperature Cool (0) Movement Core (50) Location -10/Mines Parts ------- > --- POWER (1) -------- (None) > --- PROPULSION (2) --- (None) > --- UTILITY (2) ------ (None) > --- WEAPON (2) ------- (None) > --- INVENTORY (5) ---- Deuterium Engine Light Deuterium Engine Improved Signal Interpreter Light Assault Rifle Grenade Launcher Peak State ------------ > --- POWER ------------ Light Ion Engine > --- PROPULSION ------- Light Treads Light Treads > --- UTILITY ---------- Medium Storage Unit Weapon Shielding > --- WEAPON ----------- Light Assault Rifle Grenade Launcher > --- INVENTORY -------- Wheel Wheel High-capacity Storage Unit Reflective Plating Medium Laser Light Assault Rifle Grenade Launcher Grenade Launcher [Rating: 8] Favorites ----------- Power Light Ion Engine Engine Light Ion Engine Propulsion Light Treads Treads Light Treads Leg Aluminum Leg Utility Medium Storage Unit Storage Medium Storage Unit Protection Weapon Shielding Weapon Light Assault Rifle Energy Gun Medium Laser Ballistic Gun Light Assault Rifle Launcher Grenade Launcher Build | -11 -10 -10 ------- Run | Jun Mat Min Slots Evolved . | . . . Power . | . . . Propulsion . | . . . Utility . | . . . Weapon . | . . . Parts Attached 12 | . 11 1 Power 3 | . 2 1 Engine 3 | . 2 1 Core . | . . . Reactor . | . . . Propulsion 2 | . 2 . Treads 2 | . 2 . Leg . | . . . Wheel . | . . . Hover . | . . . Flight . | . . . Utility 2 | . 2 . Device . | . . . Storage 1 | . 1 . Processor . | . . . Hackware . | . . . Protection 1 | . 1 . Artifact . | . . . Weapon 5 | . 5 . Energy Gun 2 | . 2 . Energy Cannon . | . . . Ballistic Gun 2 | . 2 . Ballistic Cannon . | . . . Launcher 1 | . 1 . Special Weapon . | . . . Impact Weapon . | . . . Slashing Weapon . | . . . Piercing Weapon . | . . . Special Melee Weapon . | . . . Unidentified Prototypes . | . . . Parts Lost 5 | . 5 . Power 3 | . 3 . Propulsion . | . . . Utility . | . . . Weapon 2 | . 2 . Highest Loss Streak 3 | . 3 . To Critical Strikes . | . . . Average Slot Usage (%) 96 | . 95 99 Engine 11 | . 11 13 Treads 19 | . 18 28 Leg 8 | . 9 . Storage 16 | . 17 14 Protection 10 | . 9 14 Energy Gun 6 | . 7 . Ballistic Gun 14 | . 15 14 Launcher 6 | . 4 14 Naked Turns 1 | . . 1 Heaviest Build 22 | 12 22 18 Greatest Support 40 | 20 40 40 Greatest Overweight (x) 1 | . 1 . Average Overweight (x) . | . . . Largest Inventory Capacity 10 | . 10 10 Average Capacity 9 | . 9 9 Most Carried 10 | . 7 10 Average Carried 6 | . 6 8 Final Capacity 10 | 8 10 5 Final Carried 7 | 6 7 5 Class Distribution -------------------- 100% | Mutant Dominant Class ---------------- Mutant | -10/Materials Mutant | -10/Mines Resources | -11 -10 -10 ----------- Run | Jun Mat Min Matter Collected 379 | 200 164 15 Remotely . | . . . Salvage Created 572 | . 557 15 Parts 29 | . 26 3 Haulers Intercepted . | . . . Recyclers Shooed . | . . . Parts Field Recycled . | . . . Retrieved Matter . | . . . Parts Self-Destructed . | . . . Prevented . | . . . Kills | -11 -10 -10 ------- Run | Jun Mat Min Combat Hostiles Destroyed 17 | . 14 3 Guns 12 | . 12 . AOE 5 | . 2 3 Classes Destroyed 5 | . 5 . Worker 1 | . 1 . Recycler 1 | . 1 . Watcher 1 | . 1 . Swarmer 8 | . 5 3 Grunt 9 | . 9 . Best Kill Streak 4 | . 4 3 Combat Bots Only 4 | . 4 3 Max Kills in Single Turn 3 | . 3 3 Gunslinging . | . . . Exploded 3 | . 2 3 Melee . | . . . Uniques/NPCs Destroyed . | . . . Combat | -11 -10 -10 -------- Run | Jun Mat Min Damage Taken 992 | . 920 72 Core 254 | . 202 52 Absorbed by Shields . | . . . Redirected to Shielding 26 | . 26 . Core Remaining (%) 100 | 100 . . Volleys Fired 58 | . 57 1 Largest 2 | . 2 1 Hottest 90 | . 90 30 Shots Fired 97 | . 96 1 Gun 95 | . 95 . Cannon . | . . . Launcher 2 | . 1 1 Special . | . . . Kinetic 64 | . 64 . Thermal 17 | . 17 . Explosive 2 | . 1 1 Electromagnetic 14 | . 14 . Robot Hit Streak 7 | . 7 . Robot Miss Streak 3 | . 3 1 Penetration Max . | . . . Secondary Targets . | . . . Shots Hit Robots 57 | . 57 . Core Hits 34 | . 31 3 Critical Kills . | . . . Critical Parts Destroyed 1 | . 1 . Critical Strikes 2 | . 2 . Burn 1 | . 1 . Destroy 1 | . 1 . Melee Attacks . | . . . Impact . | . . . Slashing . | . . . Piercing . | . . . Sneak Attacks . | . . . Combat Hostiles . | . . . Follow-up Attacks . | . . . Damage Inflicted 878 | . 759 119 Guns 575 | . 575 . Cannons . | . . . Explosions 277 | . 163 114 Melee . | . . . Ramming 26 | . 21 5 Kinetic 332 | . 332 . Thermal 168 | . 168 . Explosive 233 | . 119 114 Electromagnetic 119 | . 119 . Impact . | . . . Slashing . | . . . Piercing . | . . . Highest Corruption . | . . . Average Corruption . | . . . Corruption Purged . | . . . Corruption Blocked . | . . . Overload Shots . | . . . Overflow Damage 14 | . 14 . Projectiles . | . . . Explosions 14 | . 14 . Melee . | . . . Knockbacks . | . . . Impact . | . . . Kinetic . | . . . Secondary . | . . . Self-Inflicted Damage 80 | . 40 40 Shots 2 | . 1 1 Rammed 4 | . 3 1 Targets Rammed 6 | . 5 1 Kicked 2 | . 2 . Crushed . | . . . Highest Temperature 116 | . 116 . Average Temperature 44 | . 44 . Received Heat Transfer 267 | . 267 . Siege Activations . | . . . Robots Corrupted . | . . . Combat Hostiles . | . . . Parts Fried 1 | . 1 . Impact Corruptions . | . . . Robots Melted . | . . . Combat Hostiles . | . . . Parts Melted . | . . . Heat Transferred 494 | . 494 . Parts Sabotaged . | . . . Parts Stolen . | . . . Parts Stripped . | . . . Power Chain Reactions 1 | . 1 . Missiles Intercepted . | . . . Alert | -11 -10 -10 ------- Run | Jun Mat Min Peak Influence 262 | . 262 128 Initial 39 | . . 39 Average 137 | . 140 128 Maximum Alert Level 1 | . 1 . Low Security (%) 76 | . 70 100 Level 1 23 | . 29 . Level 2 . | . . . Level 3 . | . . . Level 4 . | . . . Level 5 . | . . . High Security . | . . . Max Security . | . . . Squads Dispatched 6 | . 5 1 Investigation 3 | . 2 1 Extermination . | . . . Reinforcement 3 | . 3 . Assault . | . . . Garrison . | . . . Intercept . | . . . Searches Triggered . | . . . Construction Impeded . | . . . Haulers Reinforced . | . . . Active Scanning Responses . | . . . Cargo Convoy Interrupts . | . . . Stealth | -11 -10 -10 --------- Run | Jun Mat Min Distress Signals 1 | . 1 . Communications Jammed . | . . . Distress Signals . | . . . Times Spotted 24 | . 22 2 Peak Tracking Total 5 | . 5 . Tactical Retreats 1 | . 1 . Traps | -11 -10 -10 ------- Run | Jun Mat Min Traps Triggered 3 | . 3 . Indirectly . | . . . Trap Hack Attempts . | . . . Triggered . | . . . Disarmed . | . . . Reprogrammed . | . . . Reused . | . . . Traps Extracted . | . . . Installed . | . . . Triggered . | . . . Machines | -11 -10 -10 ---------- Run | Jun Mat Min Machines Disabled 1 | . . 1 Max in Single Turn 1 | . . 1 Machines Repaired . | . . . Machines Sabotaged . | . . . Overloaded Fab Kills . | . . . Hacking | -11 -10 -10 --------- Run | Jun Mat Min Machines Accessed 2 | . 1 1 Terminals 1 | . 1 . Fabricators . | . . . Repair Stations . | . . . Recycling Units . | . . . Scanalyzers . | . . . Garrison Access . | . . . Total Hacks 4 | . 3 1 Successful 3 | . 2 1 Failed 1 | . 1 . Catastrophic . | . . . Database Lockouts . | . . . Manual 2 | . 2 . Terminals 3 | . 3 . Fabricators . | . . . Repair Stations . | . . . Recycling Units . | . . . Scanalyzers . | . . . Garrison Access . | . . . Terminal Hacks 3 | . 2 1 Robot Analysis 1 | . 1 . Open Door 1 | . . 1 Locate Traps 1 | . 1 . Fabricator Hacks . | . . . Repair Station Hacks . | . . . Recycling Unit Hacks . | . . . Scanalyzer . | . . . Garrison Access Hacks . | . . . Unauthorized Hacks . | . . . Terminals . | . . . Fabricators . | . . . Repair Stations . | . . . Recycling Units . | . . . Scanalyzers . | . . . Garrison Access . | . . . Data Cores Recovered . | . . . Used . | . . . Hacking Detections 1 | . 1 . Full Trace Events . | . . . Feedback Events . | . . . Feedback Blocked . | . . . Robot Schematics Acquired . | . . . Robots Built . | . . . Authchips . | . . . Time . | . . . Total Robot Build Rating . | . . . Part Schematics Acquired . | . . . Parts Built . | . . . Authchips . | . . . Time . | . . . Total Part Build Rating . | . . . Parts Repaired . | . . . Time . | . . . Parts Recycled . | . . . Recycled Matter . | . . . Retrieved Matter . | . . . Retrieved Components . | . . . Parts Scanalyzed . | . . . Part Schematics Acquired . | . . . Parts Damaged . | . . . Bothacking | -11 -10 -10 ------------ Run | Jun Mat Min Used RIF Installer . | . . . Robots Hacked . | . . . Non-combat . | . . . Combat . | . . . Robot Hacks Applied . | . . . Relay Couplers Released . | . . . Fabnet Peak Effective % . | . . . Robots Rewired . | . . . Allies Hacked . | . . . Hacks Repelled . | . . . Allies | -11 -10 -10 -------- Run | Jun Mat Min Total Allies . | . . . Largest Group . | . . . Highest-Rated Group . | . . . Highest-Rated Ally . | . . . Total Orders . | . . . Ally Attacks . | . . . Total Damage . | . . . Kills . | . . . Allies Corrupted . | . . . Allies Melted . | . . . Intel | -11 -10 -10 ------- Run | Jun Mat Min Robot Analysis Total 1 | . 1 . Derelict Logs Recovered . | . . . Drone Launches . | . . . Drone Recoveries . | . . . Exploration | -11 -10 -10 ------------- Run | Jun Mat Min Turns Passed 1085 | . 885 200 Spaces Moved 570 | 1 449 120 Core 2 | . . 2 Treads 411 | . 293 118 Legs 157 | 1 156 . Wheels . | . . . Hover . | . . . Flight . | . . . Fastest Speed 50 | 120 120 50 Average Speed 158 | 120 159 158 Slowest Speed 190 | 120 190 160 Overloaded Moves . | . . . Propulsion Burnouts . | . . . Robots Hopped . | . . . Cave-ins Triggered . | . . . Exploration Rate (%) 39 | 2 83 32 Regions Visited 2 Branch Regions 1 Pre-discovered Areas . | . . . Known Exits Taken . | . . . Unknown Exits Taken 2 | 1 1 . Scrap Searched . | . . . Spaces Dug . | . . . Terrain Destroyed 19 | . 15 4 Melee . | . . . Projectile . | . . . AOE 19 | . 15 4 Terrain Rammed . | . . . Walls Destroyed . | . . . Machines Disabled . | . . . Actions | -11 -10 -10 --------- Run | Jun Mat Min Total 662 | . 533 129 Wait 4 | . 4 . Move 568 | . 448 120 Hop . | . . . Pick Up 9 | . 5 4 Fast Attach 5 | . 4 1 Attach 4 | . 4 . Detach . | . . . Swap 3 | . 3 . Drop 5 | . 3 2 Fire 58 | . 57 1 Melee . | . . . Ram . | . . . Kick 2 | . 2 . Crush 4 | . 3 1 Escape Stasis . | . . . Rewire . | . . . Trap . | . . . Miscellaneous . | . . . Route ------- -11/Junkyard -10/Materials (discovered 4 exits: [*Mat x3] / *Min) -10/Mines History --------- Turn | Location | Event 1 | -11/Junkyard | Discovered new exit (range 0) 1 | -11/Junkyard | Entered Materials 151 | -10/Materials | Discovered new exit (range 6) 245 | -10/Materials | Lost 3 parts (1p2w) 340 | -10/Materials | Build established: Mutant 356 | -10/Materials | Discovered new exit (range 8) 463 | -10/Materials | Core integrity fell below 50% 539 | -10/Materials | Discovered new exit (range 10) 759 | -10/Materials | Core integrity fell below 20% 782 | -10/Materials | Discovered new exit (range 9) 886 | -10/Materials | Entered Mines 945 | -10/Mines | Met a Derelict shopkeep closing up shop 1054 | -10/Mines | Assembled infested the area 1085 | -10/Mines | Released all parts (7) 1086 | -10/Mines | Destroyed by D-53 Grenadier with Mini Grenade Launcher Last Messages --------------- 00949_ MC-LIY(g): "You've got to be kidding me! I'm outta here..." 00951_ Acquired Reflective Plating. 00957_ Acquired Lgt. Deuterium Engine. 00959_ Acquired Deuterium Engine. 00962_ Dropped Wheel. 00963_ Acquired Imp. Signal Interpreter. 01005_ Slammed into T-07 Excavator. 01020_ U-05 Engineer lays Concrete. 01052_ K-01 Serf collects debris. 01054_ ALERT: Infestation in the mines, dispatching Demolisher response squad. 01057_ K-01 Serf collects debris. 01085_ Released Med. Storage Unit. 01085_ Released Weapon Shielding. 01085_ Released Lgt. Treads. 01085_ Released Lgt. Assault Rifle. 01085_ Released Grenade Launcher. 01085_ Released Lgt. Ion Engine. 01086_ C-30 ARC bursts open, deploying its payload. 01086_ D-53 Grenadier unfolds itself. Map ----- +----------------------------------------------------+ | | | ?????????????????????????????????????????????????? | | #####????????????????????????????????????????????? | | """"##???????????????????????????????????????????? | | == ="#???????????????????????????????????????????? | | = "#????????????????######?????????????????????? | | ##?????????????#### ########??????????????? | | # ########????????# #??????????????? | | X # ##???##### *[ #??????????????? | | #???# #??????????????? | | #???# ### """ #??????????????? | | ##???# #?# """ #??????????????? | | ## #????# ### " """ #??????????????? | | ### ###### ???????????????? | | #?# ## ### """ """ """ #??????????????? | | #?# ## ####?# """ """ """ #??????????????? | | #?# #????# """ """ """ #??????????????? | | # ##?## ## #????# ????????????????? | | ####??## ## ###??# ????????????????? | | ????### #??### #####?###????????????????? | | ????# #### #????# #????????????????????????? | | ???# ##??# ###### ########?????????????????? | | ???# ###???# ## #??????##?????????? | | ???## ##?????######## #?##### ##????????? | | ????###????????????## d=[ ### #????????? | | ???????????????????# d@!! #????????? | | ???????????????????# ##!]= """ #?????????? | | ???????????????????# ####! """ #??????????? | | ????????????????? #??#] """ #???????????? | | ??????????????? #??# ##???????????? | | ??????????????##########??# ###u #????????????? | | ??????????????????????????# ##?# #????????????? | | ??????????????????????????## ##??# #????????????? | | ???????????????????????????###???# #????????????? | | ?????????????????????????????????# #????????????? | | ?????????????????????????????????# #????????????? | | ?????????????????????????????????# #????????????? | | ????????????????????????????????## ####?????????? | | ????????????????????????????????# ##????????? | | ????????????????????????????????# #????????? | | ???????????????????????????????# #????????? | | ??????????????????????????????# #???????? | | ?????????????????????????????# #??????? | | ???????????????????????????? #??????? | | ?????????????????????????? #?????? | | ???????????????????????? #?????? | | ??????????????????????? #?????? | | ??????????????????????? ## ### $ ##?????? | | ???????????????????????? #?###???# ###??????? | | ???????????????????????? ?????????# #????????? | +----------------------------------------------------+ Best States ------------- Heat Dissipation 25 Energy Generation 10 Energy Capacity 250 Matter Stores 300 Matter Capacity 300 Sight Range 16 Terrain Scan Density 10 Weapon Shielding 33 Evasion (%) 55 Recoil Reduction 2 Item Schematics ----------------- None Robot Schematics ------------------ None Fabricated ------------ Nothing Alien Tech Used ----------------- None Achievements -------------- None Challenges ------------ None Game ------ Seed NuclearGammaSlayer Manual? 0 Play Time 00:05:00 Cumulative 375.8 hours Start 2023.10.09 @ 15:37:28 End 2023.10.09 @ 16:01:36 Sessions 1 Manual Loads 0 Difficulty Rogue Special Mode None Game No. 552 Rogue 525 Adventurer 4 Explorer 23 Win Type - Total 20 Types 14/0/2/2/1/0/0/1/0 Lore% 81 Gallery% 91 Achievement% 83 Wizard Run 0 Options --------- ASCII 0 Keyboard 1 Movement Numpad Keybinds 0 Fullscreen 1 Font 18/SmallcapsGlow Map View 76x50 Tactical HUD 1 Map Filters NONE Filters NONE Steam 1 RUN: 7315d6cd-83c6-432d-b7af-413557919e19